bitfinex/quotes_BTCUSD_20220202
["timestamp","ask_amount","ask_price","bid_price","bid_amount"]
[1643767026421,0.06506,38442.0,38434.0,0.02]
[1643767026624,0.2067054,38443.0,38434.0,0.02]
[1643767027422,0.02,38441.0,38438.0,0.28340746]
[1643767028485,0.47230085,38443.0,38438.0,0.28381026]
[1643767029082,0.2067054,38443.0,38438.0,0.28381026]
[1643767029285,0.2267054,38443.0,38438.0,0.28381026]
[1643767029485,0.2267054,38443.0,38438.0,0.28340746]
[1643767029684,0.2267054,38443.0,38439.0,0.00080357]
[1643767030283,0.48727488,38443.0,38439.0,0.00080357]
[1643767030685,0.48727488,38443.0,38438.0,0.28340746]
[1643767030887,0.48727488,38443.0,38439.0,0.00088916]
[1643767031686,0.53927488,38443.0,38439.0,0.00088916]
[1643767031887,0.53927488,38443.0,38438.0,0.28340746]
[1643767032092,0.53927488,38443.0,38439.0,0.00088916]
[1643767032322,0.52172265,38443.0,38439.0,0.00088916]
[1643767032522,0.10829657,38442.0,38439.0,0.00088916]
[1643767032726,0.19731732,38441.0,38439.0,0.00088916]
[1643767033122,0.10829657,38442.0,38436.0,0.01964658]
[1643767033324,0.0650563,38442.0,38438.0,0.00077975]
[1643767034122,0.19509285,38441.0,38438.0,0.00077975]
[1643767034323,0.19509285,38441.0,38436.0,0.24230961]
[1643767034624,0.0650563,38442.0,38438.0,0.00077975]
[1643767035624,0.0650563,38442.0,38436.0,0.24230961]
[1643767035825,0.0650563,38442.0,38438.0,0.00077975]
[1643767036665,0.0650563,38442.0,38434.0,0.02]
[1643767036866,0.19897782,38441.0,38438.0,0.00077975]
[1643767037064,0.0650563,38442.0,38438.0,0.00077975]
[1643767037866,0.0650563,38442.0,38437.0,0.07934083]
[1643767038267,0.06438846,38442.0,38438.0,0.00080437]
[1643767038967,0.195244,38441.0,38438.0,0.00080437]
[1643767039168,0.195244,38441.0,38436.0,0.23356728]
[1643767039367,0.195244,38441.0,38438.0,0.00080437]
[1643767039368,0.23635191,38441.0,38438.0,0.00080437]
[1643767039568,0.04110791,38441.0,38438.0,0.00080437]
[1643767039831,0.24273263,38441.0,38438.0,0.00080437]
[1643767040025,0.20162472,38441.0,38438.0,0.00080437]
[1643767040424,0.20162472,38441.0,38436.0,0.54187517]
[1643767040625,0.20162472,38441.0,38438.0,0.00080438]
[1643767040826,0.10445069,38442.0,38438.0,0.00080438]
[1643767040827,0.11332809,38442.0,38438.0,0.00080438]
[1643767041230,0.19597589,38441.0,38438.0,0.00080438]
[1643767041626,0.19597589,38441.0,38436.0,0.44503276]
[1643767041828,0.11332809,38442.0,38438.0,0.00079884]
[1643767042828,0.11332809,38442.0,38436.0,0.44503276]
[1643767043029,0.11332809,38442.0,38438.0,0.00079883]
[1643767043870,0.11332809,38442.0,38436.0,0.44503276]
[1643767044071,0.01774524,38443.0,38438.0,0.00080008]
[1643767044871,0.30004055,38443.0,38438.0,0.00080008]
[1643767045074,0.30004055,38443.0,38436.0,0.44503276]
[1643767045471,0.30004055,38443.0,38439.0,0.00080007]
[1643767046272,0.30004055,38443.0,38436.0,0.44503276]
[1643767046772,0.30004055,38443.0,38439.0,0.00080006]
[1643767047628,0.20276015,38442.0,38436.0,0.44503276]
[1643767047924,0.30004055,38443.0,38439.0,0.00080006]
[1643767048626,0.20375184,38442.0,38439.0,0.00080006]
[1643767048925,0.30004055,38443.0,38439.0,0.00079978]
[1643767049726,0.01774524,38443.0,38439.0,0.00079978]
[1643767049925,0.01774524,38443.0,38437.0,0.28321035]
[1643767050130,0.01774524,38443.0,38439.0,0.00079978]
[1643767050828,0.25728665,38443.0,38439.0,0.00079978]
[1643767051070,0.25728665,38443.0,38437.0,0.28321035]
[1643767051470,0.01774524,38443.0,38439.0,0.00079978]
[1643767052371,0.01774524,38443.0,38437.0,0.28321035]
[1643767052571,0.01774524,38443.0,38439.0,0.00079984]
[1643767053572,0.01774524,38443.0,38437.0,0.28321035]
[1643767053773,0.01774524,38443.0,38439.0,0.00079984]
[1643767054819,0.01774524,38443.0,38437.0,0.28321035]
[1643767055022,0.01774524,38443.0,38439.0,0.00079984]
[1643767056119,0.01774524,38443.0,38439.0,0.00079983]
[1643767058023,0.01774524,38443.0,38442.0,0.3044262]
[1643767058220,0.01774524,38443.0,38439.0,0.00079983]
[1643767058471,0.01774524,38443.0,38437.0,0.21467926]
[1643767058671,0.01774524,38443.0,38441.0,0.00079979]
[1643767059371,0.00589387,38443.0,38441.0,0.00079979]
[1643767059574,0.00589387,38443.0,38434.0,0.11196991]
[1643767059875,0.06505436,38442.0,38440.0,0.00079981]
[1643767060674,0.06505436,38442.0,38434.0,0.02]
[1643767060875,0.06505436,38442.0,38439.0,0.00079983]
[1643767061272,0.01774524,38443.0,38439.0,0.00079983]
[1643767061873,0.01774524,38443.0,38436.0,0.2835454]
[1643767062321,0.01774524,38443.0,38439.0,0.00079983]
[1643767063120,0.01774524,38443.0,38436.0,0.2835454]
[1643767063325,0.01774524,38443.0,38439.0,0.00079983]
[1643767063520,0.01774524,38443.0,38436.0,0.27934523]
[1643767066877,0.01774524,38443.0,38437.0,0.00097584]
[1643767067877,0.01774524,38443.0,38436.0,0.27934523]
[1643767068177,0.01774524,38443.0,38437.0,0.00097584]
[1643767069178,0.01774524,38443.0,38436.0,0.60907712]
[1643767069378,0.01774524,38443.0,38437.0,0.00097584]
[1643767069821,0.01774524,38443.0,38440.0,0.35879597]
[1643767070023,0.01774524,38443.0,38440.0,0.27864603]
[1643767070423,0.00589387,38443.0,38440.0,0.27864603]
[1643767075779,0.00589387,38443.0,38439.0,0.09048306]
[1643767075980,0.00589387,38443.0,38437.0,0.00097584]
[1643767076381,0.22986708,38440.0,38436.0,0.32973189]
[1643767076583,0.22986708,38440.0,38437.0,0.00097584]
[1643767076983,0.22986708,38440.0,38437.0,0.2255827]
[1643767077629,0.07094787,38443.0,38437.0,0.22460686]
[1643767077830,0.07094787,38443.0,38437.0,0.22558271]
[1643767078629,0.27680542,38443.0,38438.0,0.21523034]
[1643767079932,0.27680542,38443.0,38437.0,0.22460686]
[1643767080132,0.00589387,38443.0,38437.0,0.2255827]
[1643767081175,0.00589387,38443.0,38437.0,0.4328956]
[1643767081176,0.26811157,38442.0,38437.0,0.4328956]
[1643767081378,0.26811157,38442.0,38437.0,0.43387144]
[1643767081575,0.00589387,38443.0,38437.0,0.43387144]
[1643767082376,0.00589387,38443.0,38437.0,0.4328956]
[1643767082574,0.23865388,38443.0,38437.0,0.43387144]
[1643767083575,0.23865388,38443.0,38437.0,0.4328956]
[1643767083775,0.23865388,38443.0,38437.0,0.43387144]
[1643767083979,0.00589387,38443.0,38437.0,0.43387144]
[1643767084376,0.01725476,38442.0,38437.0,0.43387144]
[1643767084825,0.01725476,38442.0,38437.0,0.4328956]
[1643767085026,0.01725476,38442.0,38437.0,0.43387144]
[1643767085924,0.01725476,38442.0,38437.0,0.4328956]
[1643767086123,0.01725476,38442.0,38437.0,0.2255827]
[1643767087126,0.01725476,38442.0,38437.0,0.22460686]
[1643767087327,0.01725476,38442.0,38437.0,0.2255827]
[1643767087527,0.01725476,38442.0,38440.0,0.27233044]
[1643767088573,0.00863847,38443.0,38440.0,0.27233044]
[1643767088772,0.05355203,38445.0,38440.0,0.27233044]
[1643767089574,0.13860178,38445.0,38440.0,0.27233044]
[1643767089775,0.45236071,38445.0,38440.0,0.27233044]
[1643767090378,0.20365278,38445.0,38440.0,0.27233044]
[1643767090776,0.20354883,38445.0,38440.0,0.27233044]
[1643767091377,0.20354883,38445.0,38437.0,0.2255827]
[1643767092428,0.44019794,38445.0,38439.0,0.20156201]
[1643767092627,0.20354883,38445.0,38439.0,0.20156201]
[1643767093628,0.44558581,38445.0,38439.0,0.20156201]
[1643767095832,0.20354883,38445.0,38439.0,0.20156201]
[1643767096075,0.07355203,38445.0,38443.0,0.29019326]
[1643767096674,0.05355203,38445.0,38443.0,0.29019326]
[1643767097674,0.05355203,38445.0,38439.0,0.20156201]
[1643767097875,0.05355203,38445.0,38436.0,0.1215]
[1643767098274,0.05355203,38445.0,38436.0,0.1975982]
[1643767098674,2.49950944,38439.0,38437.0,0.29046014]
[1643767098874,0.00589333,38441.0,38437.0,0.4956752]
[1643767101628,0.00589333,38441.0,38437.0,0.49665104]
[1643767102630,0.00589333,38441.0,38437.0,0.4956752]
[1643767102828,0.00589333,38441.0,38437.0,0.49665104]
[1643767103881,0.00589333,38441.0,38437.0,0.4956752]
[1643767104081,0.00589333,38441.0,38437.0,0.49665104]
[1643767104980,0.00589333,38441.0,38437.0,0.4956752]
[1643767105181,0.00589333,38441.0,38437.0,0.49665104]
[1643767106281,0.00589333,38441.0,38437.0,0.4956752]
[1643767106482,0.00589333,38441.0,38437.0,0.49665104]
[1643767107731,0.01823588,38445.0,38437.0,0.82656457]
[1643767107928,0.01695188,38445.0,38439.0,0.32991353]
[1643767108128,0.01695188,38445.0,38441.0,0.32991353]
[1643767108329,0.01695188,38445.0,38442.0,0.349471]
[1643767108528,0.01695188,38445.0,38442.0,0.67938453]
[1643767108729,0.01695188,38445.0,38443.0,0.66393562]
[1643767108928,0.01695188,38445.0,38444.0,0.349471]
[1643767111788,0.01695188,38445.0,38442.0,0.02]
[1643767112988,0.01695188,38445.0,38437.0,0.66731249]
[1643767113187,0.01695188,38445.0,38437.0,0.37685235]
[1643767113391,0.01695188,38445.0,38436.0,0.118]
[1643767113588,0.01695188,38445.0,38437.0,0.00097584]
[1643767113787,0.01695188,38445.0,38438.0,0.02]
[1643767113986,0.01695188,38445.0,38439.0,0.27603261]
[1643767116129,0.01695188,38445.0,38439.0,0.35720419]
[1643767117429,0.01695188,38445.0,38439.0,0.42224219]
[1643767118875,0.01695188,38445.0,38439.0,0.35720419]
[1643767120178,0.01695188,38445.0,38440.0,0.065037]
[1643767120782,0.01695188,38445.0,38441.0,0.349471]
[1643767120979,0.01695188,38445.0,38440.0,0.73420478]
[1643767121379,0.01695188,38445.0,38442.0,0.305029]
[1643767121581,0.01695188,38445.0,38443.0,0.349471]
[1643767122536,0.01695188,38445.0,38444.0,0.545026]
[1643767122838,0.01695188,38445.0,38444.0,0.894497]
[1643767123238,0.01695188,38445.0,38444.0,0.944497]
[1643767124841,0.01695188,38445.0,38444.0,1.044497]
[1643767125041,0.01695188,38445.0,38444.0,1.096497]
[1643767126079,0.02,38447.0,38445.0,0.595022]
[1643767126287,0.02,38447.0,38446.0,1.09649]
[1643767126682,0.02,38447.0,38446.0,1.14649]
[1643767126878,0.02,38447.0,38446.0,1.29649]
[1643767127078,0.02,38447.0,38446.0,1.8395318]
[1643767127278,0.19935479,38462.0,38450.0,0.065016]
[1643767127481,0.01,38463.0,38451.0,0.51041313]
[1643767127678,0.01,38463.0,38452.0,0.349471]
[1643767127878,0.01,38463.0,38453.0,0.2665196]
[1643767128080,0.00122966,38459.0,38454.0,0.449471]
[1643767128282,0.00122966,38459.0,38455.0,0.6388686]
[1643767128480,0.00122966,38459.0,38457.0,0.09407542]
[1643767128680,0.00122966,38459.0,38458.0,0.68742252]
[1643767129080,0.02,38460.0,38458.0,0.68742252]
[1643767129281,0.02122964,38460.0,38458.0,0.68742252]
[1643767129481,0.02122964,38460.0,38459.0,0.21467024]
[1643767129744,0.00122964,38460.0,38459.0,0.61414124]
[1643767130238,0.24188771,38467.0,38459.0,0.61414124]
[1643767130438,0.00122963,38461.0,38459.0,0.21467024]
[1643767130639,0.00122963,38461.0,38456.0,0.20902331]
[1643767130640,0.2372011,38460.0,38456.0,0.20902331]
[1643767130844,0.2372011,38460.0,38457.0,0.349471]
[1643767131039,0.2372011,38460.0,38455.0,0.32691843]
[1643767131242,0.2372011,38460.0,38455.0,0.02]
[1643767131642,2.3471057,38458.0,38455.0,0.02]
[1643767132642,2.3471057,38458.0,38452.0,0.20416072]
[1643767132841,2.34833537,38458.0,38452.0,0.20416072]
[1643767133683,2.34833537,38458.0,38452.0,0.22416072]
[1643767133883,0.02,38462.0,38452.0,0.22416072]
[1643767134085,0.00122968,38457.0,38452.0,0.42362693]
[1643767134283,0.00122968,38457.0,38453.0,0.349471]
[1643767134483,0.00122968,38457.0,38454.0,0.20346719]
[1643767134684,0.00122968,38457.0,38455.0,0.349471]
[1643767134883,0.00122968,38457.0,38452.0,0.02]
[1643767135185,0.20304546,38460.0,38452.0,0.02]
[1643767135383,0.00122967,38458.0,38452.0,0.02]
[1643767135984,0.00122967,38458.0,38453.0,0.56371448]
[1643767136188,0.03834251,38462.0,38454.0,0.19836006]
[1643767136484,0.00122968,38457.0,38454.0,0.19836006]
[1643767136684,0.00122968,38457.0,38455.0,0.349471]
[1643767137331,0.00122968,38457.0,38455.0,0.399471]
[1643767137531,0.05838195,38462.0,38455.0,0.399471]
[1643767137734,0.24334114,38457.0,38452.0,0.02]
[1643767138133,0.1978001,38456.0,38452.0,0.02]
[1643767138333,0.24334114,38457.0,38452.0,0.02]
[1643767138533,0.19587572,38456.0,38452.0,0.02]
[1643767139034,0.19710541,38456.0,38452.0,0.02]
[1643767139436,0.052,38455.0,38452.0,0.02]
[1643767139634,0.19343655,38454.0,38447.0,0.9442]
[1643767139835,0.19956528,38454.0,38445.0,0.28104863]
[1643767140235,0.19956528,38454.0,38447.0,0.2821416]
[1643767140636,0.19956528,38454.0,38448.0,0.02]
[1643767140835,0.07395825,38453.0,38448.0,0.02]
[1643767141086,0.26462111,38451.0,38448.0,0.02]
[1643767141289,0.19426566,38452.0,38448.0,0.02]
[1643767141584,0.07518799,38453.0,38448.0,0.02]
[1643767141786,0.02,38452.0,38445.0,0.28104863]
[1643767142385,0.2756644,38451.0,38446.0,0.24357094]
[1643767142586,0.00122977,38450.0,38446.0,0.24357094]
[1643767142786,0.00122977,38450.0,38447.0,0.349471]
[1643767143387,0.02,38452.0,38447.0,0.349471]
[1643767143588,0.00122977,38450.0,38446.0,0.26357094]
[1643767143788,0.00122977,38450.0,38447.0,0.349471]
[1643767144586,0.02,38452.0,38447.0,0.349471]
[1643767144832,0.00122977,38450.0,38446.0,0.26357094]
[1643767145032,0.00122977,38450.0,38447.0,0.349471]
[1643767145833,0.02,38452.0,38447.0,0.349471]
[1643767146032,0.00122977,38450.0,38446.0,0.26357094]
[1643767146233,0.00122977,38450.0,38447.0,0.349471]
[1643767147035,0.02,38452.0,38447.0,0.349471]
[1643767147235,0.00122977,38450.0,38446.0,0.26357094]
[1643767147638,0.00122977,38450.0,38446.0,0.24357094]
[1643767148035,0.00122977,38450.0,38447.0,0.349471]
[1643767148237,0.02,38452.0,38447.0,0.349471]
[1643767148482,0.00122977,38450.0,38446.0,0.24357094]
[1643767148683,0.00122977,38450.0,38447.0,0.349471]
[1643767149481,0.02,38452.0,38446.0,0.24357094]
[1643767149682,0.00122977,38450.0,38446.0,0.24357094]
[1643767150685,0.02,38452.0,38447.0,0.349471]
[1643767150983,0.00122977,38450.0,38446.0,0.24357094]
[1643767151186,0.00122977,38450.0,38447.0,0.349471]
[1643767151785,0.02,38452.0,38447.0,0.349471]
[1643767151985,0.02,38452.0,38446.0,0.24357094]
[1643767152242,0.00122977,38450.0,38446.0,0.24357094]
[1643767152436,0.00122977,38450.0,38447.0,0.349471]
[1643767153036,0.02,38452.0,38447.0,0.349471]
[1643767153337,0.00122977,38450.0,38446.0,0.24357094]
[1643767153537,0.00122977,38450.0,38447.0,0.349471]
[1643767154141,0.00122977,38450.0,38446.0,0.24357094]
[1643767154340,0.02,38452.0,38446.0,0.24357094]
[1643767154540,0.00122977,38450.0,38446.0,0.24357094]
[1643767155040,0.00122977,38450.0,38447.0,0.349471]
[1643767155441,0.02,38452.0,38447.0,0.349471]
[1643767155640,0.00122977,38450.0,38446.0,0.24357094]
[1643767155840,0.00113426,38450.0,38447.0,0.349471]
[1643767156685,0.02,38452.0,38447.0,0.349471]
[1643767156882,0.02,38452.0,38446.0,0.24357094]
[1643767158181,0.00074214,38451.0,38446.0,0.24357094]
[1643767159083,0.02,38452.0,38445.0,0.30104863]
[1643767159386,0.00074214,38450.0,38445.0,0.02]
[1643767160034,0.00074214,38450.0,38445.0,0.26062019]
[1643767160234,0.02,38452.0,38445.0,0.26062019]
[1643767160437,0.0012299,38449.0,38445.0,0.52161863]
[1643767160633,0.0012299,38449.0,38445.0,0.50161863]
[1643767161533,0.02,38452.0,38445.0,0.50161863]
[1643767161733,0.0011201,38449.0,38445.0,0.50161863]
[1643767162634,0.02,38452.0,38445.0,0.50161863]
[1643767162835,0.0011201,38449.0,38445.0,0.50161863]
[1643767163783,0.02,38452.0,38445.0,0.50161863]
[1643767163983,0.0011201,38449.0,38445.0,0.50161863]
[1643767164184,0.0011201,38449.0,38446.0,0.349471]
[1643767164984,0.02,38452.0,38446.0,0.349471]
[1643767165185,0.02,38452.0,38445.0,0.50161863]
[1643767165484,0.0011201,38449.0,38445.0,0.50161863]
[1643767165689,0.0011201,38449.0,38446.0,0.349471]
[1643767165886,0.0011201,38449.0,38446.0,0.414502]
[1643767166286,0.02,38452.0,38446.0,0.414502]
[1643767166488,0.0011448,38449.0,38446.0,0.065031]
[1643767166688,0.0011448,38449.0,38447.0,0.349471]
[1643767167531,0.02,38452.0,38447.0,0.349471]
[1643767167830,0.0011448,38450.0,38446.0,0.065031]
[1643767168430,0.0011448,38450.0,38446.0,0.130061]
[1643767168630,0.02,38452.0,38446.0,0.130061]
[1643767168830,0.0011448,38450.0,38446.0,0.130061]
[1643767169931,0.01907827,38452.0,38446.0,0.12998092]
[1643767170130,0.00113924,38450.0,38446.0,0.12998092]
[1643767170532,0.00113924,38450.0,38447.0,0.349471]
[1643767170734,0.00113924,38450.0,38447.0,0.35607102]
[1643767170981,0.01907827,38452.0,38447.0,0.40607102]
[1643767171181,0.01907827,38452.0,38448.0,0.130034]
[1643767171382,0.5761758,38462.0,38448.0,0.130034]
[1643767171383,0.5761758,38462.0,38449.0,0.829471]
[1643767171581,0.5761758,38462.0,38458.0,0.51723894]
[1643767171881,0.0215758,38462.0,38458.0,0.51723894]
[1643767172484,0.01993563,38462.0,38458.0,0.51723894]
[1643767172682,0.01993563,38462.0,38459.0,0.08052059]
[1643767173781,0.02112233,38462.0,38459.0,0.08052059]
[1643767174484,0.0011867,38462.0,38459.0,0.08052059]
[1643767174742,0.20484325,38466.0,38459.0,0.08052059]
[1643767174941,0.0011867,38462.0,38460.0,0.08417949]
[1643767175339,0.0011867,38462.0,38461.0,0.664475]
[1643767175939,0.01958776,38466.0,38461.0,0.88239757]
[1643767176140,0.00118669,38463.0,38461.0,0.88239757]
[1643767177241,0.02113192,38464.0,38462.0,0.129991]
[1643767177544,0.02113192,38464.0,38463.0,0.349471]
[1643767177740,0.00113192,38464.0,38463.0,0.349471]
[1643767178140,0.00113192,38464.0,38463.0,0.56620526]
[1643767178341,0.01958776,38466.0,38463.0,0.69619326]
[1643767178585,0.0011319,38465.0,38464.0,0.064994]
[1643767178790,0.0011319,38465.0,38464.0,0.64495135]
[1643767179584,0.02,38467.0,38465.0,0.06499]
[1643767179783,0.02,38467.0,38466.0,0.55931054]
[1643767180287,0.02,38467.0,38466.0,0.84876643]
[1643767180686,0.1224,38475.0,38466.0,0.84876643]
[1643767180887,0.00457608,38474.0,38470.0,0.5651735]
[1643767181688,0.02457608,38474.0,38470.0,0.5651735]
[1643767181888,0.01,38474.0,38470.0,0.5651735]
[1643767182088,0.01114413,38474.0,38470.0,0.5651735]
[1643767182337,0.01114413,38474.0,38467.0,0.064993]
[1643767182542,0.01114413,38474.0,38466.0,0.35445189]
[1643767182737,0.01,38473.0,38468.0,0.02]
[1643767183338,0.22715296,38470.0,38468.0,0.02]
[1643767183539,0.23304206,38470.0,38468.0,0.02]
[1643767183938,0.23304206,38470.0,38462.0,0.223234]
[1643767184539,0.00114142,38468.0,38463.0,0.26128272]
[1643767184738,0.01114142,38468.0,38464.0,0.02]
[1643767185443,0.01,38468.0,38464.0,0.02]
[1643767185843,0.01114142,38468.0,38464.0,0.02]
[1643767186483,0.01114142,38468.0,38464.0,0.21747195]
[1643767186685,0.01,38468.0,38464.0,0.21747195]
[1643767186884,0.01114142,38468.0,38464.0,0.21747195]
[1643767187885,0.01,38468.0,38464.0,0.02]
[1643767188088,0.01114205,38468.0,38464.0,0.21584835]
[1643767189185,0.01,38468.0,38464.0,0.21501513]
[1643767189585,0.01114205,38468.0,38464.0,0.21501513]
[1643767189835,0.01114205,38468.0,38464.0,0.02]
[1643767190334,0.01114205,38468.0,38464.0,0.21666526]
[1643767190535,0.01,38468.0,38464.0,0.21666526]
[1643767190746,0.01114205,38468.0,38464.0,0.21666526]
[1643767190934,0.01114205,38468.0,38464.0,0.02]
[1643767191334,0.01114205,38468.0,38464.0,0.21699825]
[1643767191536,0.01114205,38468.0,38464.0,0.02]
[1643767191734,0.01114191,38468.0,38464.0,0.02]
[1643767192736,0.01,38468.0,38464.0,0.02]
[1643767192935,0.01,38468.0,38465.0,0.2799524]
[1643767193135,0.01114191,38468.0,38465.0,0.2799524]
[1643767193584,0.00114191,38468.0,38465.0,0.2799524]
[1643767193984,0.01,38469.0,38464.0,0.02]
[1643767194184,0.0011419,38468.0,38464.0,0.02]
[1643767194784,0.0111419,38468.0,38464.0,0.02]
[1643767194984,0.0111419,38468.0,38466.0,0.23596148]
[1643767195184,0.01,38468.0,38464.0,0.02]
[1643767195386,0.01107013,38468.0,38464.0,0.02]
[1643767195585,0.00107013,38468.0,38464.0,0.02]
[1643767195786,0.01107013,38468.0,38464.0,0.02]
[1643767196387,0.01,38468.0,38465.0,0.24595807]
[1643767196587,0.01107013,38468.0,38465.0,0.24595807]
[1643767197538,0.01,38468.0,38465.0,0.24595807]
[1643767197739,0.01107012,38468.0,38465.0,0.24595807]
[1643767197939,0.00107012,38468.0,38465.0,0.24595807]
[1643767198738,0.02,38469.0,38465.0,0.24595807]
[1643767198938,0.00114193,38468.0,38464.0,0.02]
[1643767199937,0.02,38469.0,38464.0,0.02]
[1643767200140,0.00114193,38468.0,38464.0,0.02]
[1643767201194,0.2189588,38469.0,38464.0,0.02]
[1643767201390,0.00114193,38468.0,38464.0,0.02]
[1643767202191,0.00261095,38466.0,38464.0,0.02]
[1643767202391,0.21403998,38469.0,38464.0,0.02]
[1643767202591,0.00114193,38468.0,38464.0,0.02]
[1643767203390,0.00114193,38468.0,38464.0,0.01992752]
[1643767203593,0.00261095,38466.0,38464.0,0.01992752]
[1643767204293,0.00261095,38466.0,38465.0,0.27063738]
[1643767204941,0.00261095,38466.0,38465.0,0.62010838]
[1643767205541,0.00225933,38466.0,38465.0,0.62010838]
[1643767205841,0.00114194,38467.0,38466.0,0.34139503]
[1643767206042,0.02,38469.0,38466.0,0.69086603]
[1643767206242,0.00114194,38467.0,38466.0,0.52273271]
[1643767206444,0.00114194,38467.0,38466.0,0.87220371]
[1643767206643,0.00114194,38467.0,38466.0,0.69086603]
[1643767207242,0.02,38469.0,38466.0,0.88406004]
[1643767207445,0.00114193,38468.0,38467.0,0.349471]
[1643767208242,0.20338222,38475.0,38467.0,0.349471]
[1643767208489,0.20794921,38475.0,38470.0,0.08341888]
[1643767208687,0.02456699,38475.0,38470.0,0.08341888]
[1643767209287,0.02456699,38475.0,38472.0,0.02066821]
[1643767209490,0.02456699,38475.0,38473.0,0.22770376]
[1643767209491,0.02,38475.0,38473.0,0.22770376]
[1643767209690,0.00114186,38475.0,38473.0,0.4948081]
[1643767210491,0.00225933,38474.0,38473.0,0.4948081]
[1643767210892,0.02,38476.0,38473.0,0.4948081]
[1643767211102,0.00114186,38475.0,38473.0,0.4948081]
[1643767211293,0.00114186,38475.0,38473.0,0.22770376]
[1643767211992,0.00219933,38474.0,38473.0,0.22770376]
[1643767215853,0.00219933,38474.0,38473.0,0.45573289]
[1643767216688,0.00219933,38474.0,38473.0,0.53877478]
[1643767217088,0.00219933,38474.0,38473.0,0.45573289]
[1643767217689,0.00219933,38474.0,38473.0,0.66178378]
[1643767217889,0.00219933,38474.0,38473.0,0.45573289]
[1643767218489,0.00219933,38474.0,38473.0,0.22770376]
[1643767219754,0.00219933,38474.0,38473.0,0.26897175]
[1643767221948,0.01834119,38476.0,38473.0,0.26897175]
[1643767222348,0.01834119,38476.0,38473.0,0.46814173]
[1643767222548,0.01834119,38476.0,38473.0,0.46451815]
[1643767222749,0.00165881,38477.0,38473.0,0.46958962]
[1643767222950,0.00165881,38477.0,38473.0,0.4695763]
[1643767223150,0.00165881,38477.0,38473.0,0.26897175]
[1643767223350,0.00165881,38477.0,38473.0,0.46500653]
[1643767223584,0.00165881,38477.0,38473.0,0.26897175]
[1643767223785,0.01834119,38477.0,38473.0,0.26897175]
[1643767224084,0.01948446,38477.0,38473.0,0.46554075]
[1643767224285,0.01948446,38477.0,38473.0,0.46834563]
[1643767224487,0.01948446,38477.0,38473.0,0.26897175]
[1643767224691,0.01948446,38477.0,38474.0,0.08207033]
[1643767224886,0.01948446,38477.0,38476.0,0.02066821]
[1643767225087,0.01834119,38477.0,38476.0,0.02066821]
[1643767225690,0.00114325,38478.0,38476.0,0.71430819]
[1643767225889,0.00114325,38478.0,38477.0,0.829471]
[1643767226287,0.0490741,38479.0,38477.0,0.829471]
[1643767226689,0.05021734,38479.0,38478.0,0.512]
[1643767226889,0.04855853,38479.0,38478.0,1.22628687]
[1643767227536,0.04741529,38479.0,38478.0,1.22628687]
[1643767227936,0.00165881,38481.0,38480.0,0.45]
[1643767228140,0.00165881,38481.0,38480.0,1.08584015]
[1643767228736,0.01834119,38483.0,38480.0,1.08584015]
[1643767228939,0.01834119,38483.0,38481.0,0.64410776]
[1643767229140,0.01834119,38483.0,38481.0,0.34663676]
[1643767230044,0.00165881,38484.0,38482.0,0.349471]
[1643767230238,0.00165881,38484.0,38483.0,0.59188654]
[1643767230438,0.00165881,38484.0,38483.0,0.729471]
[1643767230837,0.01834119,38486.0,38483.0,0.729471]
[1643767231089,0.01834119,38486.0,38485.0,0.40316395]
[1643767231288,0.01834119,38486.0,38485.0,0.75263495]
[1643767231689,0.00165881,38488.0,38485.0,0.75263495]
[1643767231889,0.00165881,38488.0,38487.0,0.2663819]
[1643767232088,0.00165881,38488.0,38487.0,0.6158529]
[1643767232694,0.01123533,38489.0,38487.0,0.6158529]
[1643767232891,0.01123533,38489.0,38487.0,0.2663819]
[1643767233492,0.01,38489.0,38487.0,0.2663819]
[1643767234495,0.01457652,38490.0,38487.0,0.2663819]
[1643767234751,0.00665881,38491.0,38487.0,0.2663819]
[1643767234946,0.00112491,38490.0,38487.0,0.2663819]
[1643767235145,0.00112491,38490.0,38487.0,0.3163819]
[1643767235546,0.00112491,38490.0,38488.0,0.04126799]
[1643767235745,0.00112491,38490.0,38488.0,0.38836901]
[1643767235944,0.01334119,38491.0,38488.0,0.38836901]
[1643767235945,0.01334119,38491.0,38489.0,0.349471]
[1643767236146,0.01446609,38491.0,38488.0,0.03626799]
[1643767236345,0.01446609,38491.0,38489.0,0.345325]
[1643767236746,0.0011249,38491.0,38488.0,0.03626799]
[1643767237146,0.00665881,38492.0,38489.0,0.350325]
[1643767237446,0.0011249,38491.0,38488.0,0.03626799]
[1643767237645,0.0011249,38491.0,38489.0,0.350325]
[1643767237849,0.0011249,38491.0,38490.0,0.064954]
[1643767238497,0.01334119,38492.0,38490.0,0.67639095]
[1643767238697,0.00114973,38492.0,38490.0,0.480229]
[1643767239098,0.00114973,38492.0,38491.0,0.19471883]
[1643767239298,0.00114973,38492.0,38491.0,0.54504383]
[1643767239498,0.00765881,38493.0,38491.0,0.62925677]
[1643767239697,0.001,38493.0,38492.0,0.350325]
[1643767239900,0.00214972,38493.0,38492.0,0.350325]
[1643767240800,0.001,38493.0,38492.0,0.38659299]
[1643767242345,0.481,38493.0,38492.0,0.03626799]
[1643767242543,0.6368084,38493.0,38492.0,0.03626799]
[1643767242745,0.54282,38493.0,38492.0,0.03626799]
[1643767242946,0.48,38490.0,38478.0,0.21188654]
[1643767243144,0.06182,38489.0,38475.0,0.4234]
[1643767243343,0.1,38484.0,38475.0,0.05]
[1643767243547,0.06182,38483.0,38475.0,0.05]
[1643767244243,0.16009762,38483.0,38475.0,0.05]
[1643767244443,0.16009762,38483.0,38481.0,0.01112397]
[1643767244444,0.48588965,38482.0,38481.0,0.01112397]
[1643767244642,0.54770965,38482.0,38481.0,0.01112397]
[1643767244844,0.55770965,38482.0,38481.0,0.01112397]
[1643767245242,0.66033378,38482.0,38481.0,0.01112397]
[1643767245446,0.70789227,38482.0,38481.0,0.01112397]
[1643767246402,0.83788127,38482.0,38481.0,0.01112397]
[1643767246604,0.88788127,38482.0,38481.0,0.01112397]
[1643767246804,0.93788127,38482.0,38481.0,0.01112397]
[1643767247507,1.44002278,38482.0,38481.0,0.01112397]
[1643767247706,1.31003378,38482.0,38481.0,0.01112397]
[1643767249105,1.41003378,38482.0,38481.0,0.01112397]
[1643767249753,1.58700402,38482.0,38481.0,0.01112397]
[1643767249948,1.79507402,38482.0,38481.0,0.01112397]
[1643767250547,1.73007902,38482.0,38481.0,0.01112397]
[1643767250850,0.064993,38481.0,38479.0,0.02]
[1643767251046,0.54182,38480.0,38479.0,0.02]
[1643767251247,0.64182,38480.0,38479.0,0.02]